bitfinex/quotes_BTCUSD_20240810
["timestamp","ask_amount","ask_price","bid_price","bid_amount"]
[1723297706927,0.33474752,60695.0,60694.0,0.0009141]
[1723297707309,0.34483966,60695.0,60694.0,0.0009141]
[1723297708110,0.34583966,60695.0,60694.0,0.0009141]
[1723297708512,0.33883966,60695.0,60694.0,0.0009141]
[1723297708710,0.08818952,60695.0,60694.0,0.0009141]
[1723297708867,0.10018952,60695.0,60694.0,0.0009141]
[1723297709069,0.01781052,60695.0,60694.0,0.3092541]
[1723297709272,0.01781052,60695.0,60694.0,0.5521141]
[1723297709527,0.01781052,60695.0,60694.0,0.87189325]
[1723297709926,0.01281052,60695.0,60694.0,0.87189325]
[1723297710131,0.01281052,60695.0,60694.0,0.875982]
[1723297710342,0.01281052,60695.0,60694.0,1.08124447]
[1723297711137,0.00081052,60695.0,60694.0,0.701222]
[1723297711586,0.01281052,60695.0,60694.0,0.69713325]
[1723297711907,0.01281052,60695.0,60694.0,0.701222]
[1723297712139,0.01781052,60695.0,60694.0,0.701222]
[1723297712492,0.00581052,60695.0,60694.0,0.701222]
[1723297712692,0.00181052,60695.0,60694.0,0.703222]
[1723297713037,0.00181052,60695.0,60694.0,0.701222]
[1723297714608,0.00181052,60695.0,60694.0,0.75896213]
[1723297714810,0.00181052,60695.0,60694.0,0.75995183]
[1723297715315,0.00081052,60695.0,60694.0,0.75995183]
[1723297715716,0.00181052,60695.0,60694.0,0.76195183]
[1723297716480,0.00181052,60695.0,60694.0,0.90946084]
[1723297718580,0.00181052,60695.0,60694.0,0.56738036]
[1723297718781,0.00181052,60695.0,60694.0,0.90945208]
[1723297718929,0.00264152,60695.0,60694.0,1.07421208]
[1723297720995,0.00264152,60695.0,60694.0,0.92670832]
[1723297721896,0.00264152,60695.0,60694.0,0.92570832]
[1723297722131,0.00264152,60695.0,60694.0,0.92370832]
[1723297722326,0.00264152,60695.0,60694.0,0.75894832]
[1723297722506,0.00364152,60695.0,60694.0,0.76094832]
[1723297723029,0.00364152,60695.0,60694.0,0.76095333]
[1723297723571,0.00264152,60695.0,60694.0,0.75895333]
[1723297724029,0.00364152,60695.0,60694.0,0.76095333]
[1723297724335,0.00264152,60695.0,60694.0,0.76095333]
[1723297724490,0.00264152,60695.0,60694.0,0.76195333]
[1723297725343,0.00164152,60695.0,60694.0,0.75895333]
[1723297725683,0.00264152,60695.0,60694.0,0.76195333]
[1723297726084,0.00164152,60695.0,60694.0,0.75995333]
[1723297726431,0.00264152,60695.0,60694.0,0.76195333]
[1723297727483,0.00264152,60695.0,60694.0,0.56738036]
[1723297727724,0.00264152,60695.0,60694.0,0.76195379]
[1723297728476,0.00264152,60695.0,60694.0,0.76095379]
[1723297728886,0.00164152,60695.0,60694.0,0.75995379]
[1723297729092,0.00164152,60695.0,60694.0,0.75895379]
[1723297729301,0.00264152,60695.0,60694.0,0.76195379]
[1723297729700,0.00164152,60695.0,60694.0,0.75995379]
[1723297730120,0.00264152,60695.0,60694.0,0.62512042]
[1723297730293,0.00264152,60695.0,60694.0,0.76195448]
[1723297731406,0.00264152,60695.0,60694.0,0.96720558]
[1723297732643,0.00264152,60695.0,60694.0,0.76195448]
[1723297732842,0.00264152,60695.0,60694.0,0.70421442]
[1723297733229,0.00264152,60695.0,60694.0,0.76195448]
[1723297734269,0.00264152,60695.0,60694.0,0.96720558]
[1723297734706,0.00264152,60695.0,60694.0,0.90946552]
[1723297735447,0.00264152,60695.0,60694.0,0.56738036]
[1723297735710,0.00264152,60695.0,60694.0,0.90946398]
[1723297737511,0.00264152,60695.0,60694.0,0.90946397]
[1723297737867,0.00164152,60695.0,60694.0,0.90746397]
[1723297738216,0.00264152,60695.0,60694.0,1.07950556]
[1723297738583,0.00264152,60695.0,60694.0,1.07750556]
[1723297738974,0.00364152,60695.0,60694.0,1.07950556]
[1723297739175,0.00364152,60695.0,60694.0,1.14792219]
[1723297739403,0.00264152,60695.0,60694.0,0.56638036]
[1723297739556,0.00264152,60695.0,60694.0,1.1489218]
[1723297740005,0.00264152,60695.0,60694.0,1.14892132]
[1723297741331,0.00264152,60695.0,60694.0,1.14890986]
[1723297742428,0.00264152,60695.0,60694.0,1.14890938]
[1723297743313,0.00264152,60695.0,60694.0,1.40457076]
[1723297743588,0.00264152,60695.0,60694.0,2.42551064]
[1723297743790,0.00264152,60695.0,60694.0,2.3534706]
[1723297743995,0.00264152,60695.0,60694.0,2.45219066]
[1723297744588,0.00164152,60695.0,60694.0,2.45019066]
[1723297744724,0.00264152,60695.0,60694.0,2.45219066]
[1723297744939,0.00264152,60695.0,60694.0,2.45119066]
[1723297745137,0.00264152,60695.0,60694.0,2.45114411]
[1723297745369,0.00164152,60695.0,60694.0,2.45214411]
[1723297745537,0.00164152,60695.0,60694.0,2.45414411]
[1723297745739,0.00264152,60695.0,60694.0,2.36929765]
[1723297746296,0.00364152,60695.0,60694.0,2.37329765]
[1723297746528,0.00364152,60695.0,60694.0,2.37329763]
[1723297746763,0.00364152,60695.0,60694.0,2.20653763]
[1723297746986,0.00364152,60695.0,60694.0,2.18184882]
[1723297747804,0.00364152,60695.0,60694.0,2.10781757]
[1723297749447,0.00364152,60695.0,60694.0,2.20653763]
[1723297750583,0.00364152,60695.0,60694.0,1.69346488]
[1723297750777,0.00364152,60695.0,60694.0,2.20654268]
[1723297751122,0.00364152,60695.0,60694.0,1.69346556]
[1723297751363,0.00364152,60695.0,60694.0,2.18659507]
[1723297752139,0.00364152,60695.0,60694.0,2.17659507]
[1723297752825,0.00364152,60695.0,60694.0,2.18659507]
[1723297753031,0.00364152,60695.0,60694.0,2.17659507]
[1723297753767,0.00364152,60695.0,60694.0,2.07782338]
[1723297753974,0.00364152,60695.0,60694.0,2.20122345]
[1723297754735,0.00364152,60695.0,60694.0,2.1328189]
[1723297754880,0.00364152,60695.0,60694.0,1.75604737]
[1723297755118,0.00364152,60695.0,60694.0,1.99549831]
[1723297755321,0.00364152,60695.0,60694.0,1.75604737]
[1723297755539,0.00364152,60695.0,60694.0,1.99549849]
[1723297755780,0.00364152,60695.0,60694.0,1.65719303]
[1723297757436,0.08164152,60695.0,60694.0,1.43217811]
[1723297757754,0.08164152,60695.0,60694.0,1.57193125]
[1723297757755,0.00364152,60695.0,60694.0,1.57193125]
[1723297758518,0.00364152,60695.0,60694.0,1.2298735]
[1723297759233,0.00364152,60695.0,60694.0,1.40719615]
[1723297759614,0.00264152,60695.0,60694.0,1.40319615]
[1723297760002,0.00264152,60695.0,60694.0,1.40619615]
[1723297760170,0.00164152,60695.0,60694.0,1.40419615]
[1723297760514,0.00264152,60695.0,60694.0,1.41219615]
[1723297760972,0.00164152,60695.0,60694.0,1.40419615]
[1723297761317,0.00264152,60695.0,60694.0,1.41219615]
[1723297761525,0.14644152,60695.0,60694.0,0.86054301]
[1723297761727,0.14644152,60695.0,60694.0,0.65229342]
[1723297761866,0.22882052,60695.0,60694.0,0.65229342]
[1723297762067,0.22882052,60695.0,60694.0,0.65529342]
[1723297762265,0.22882052,60695.0,60694.0,0.65530944]
[1723297762531,0.39357852,60695.0,60694.0,0.65530944]
[1723297763696,0.39357852,60695.0,60694.0,0.51846036]
[1723297763901,0.39357852,60695.0,60694.0,0.6553203]
[1723297764291,0.39357852,60695.0,60694.0,0.65532093]
[1723297764633,0.72115144,60695.0,60694.0,0.64732093]
[1723297764840,0.39257852,60695.0,60694.0,0.64432093]
[1723297764981,0.14544152,60695.0,60694.0,0.64932093]
[1723297765175,0.14644152,60695.0,60694.0,0.64932093]
[1723297765818,0.22882052,60695.0,60694.0,0.64932093]
[1723297766025,0.08064152,60695.0,60694.0,0.73170093]
[1723297766218,0.00264152,60695.0,60694.0,0.73170093]
[1723297767238,0.00264152,60695.0,60694.0,0.64932093]
[1723297767762,0.00264152,60695.0,60694.0,0.73170093]
[1723297767964,0.00264152,60695.0,60694.0,0.59484036]
[1723297768143,0.00264152,60695.0,60694.0,0.73168777]
[1723297769125,0.00264152,60695.0,60694.0,0.89644777]
[1723297770898,0.00264152,60695.0,60694.0,1.37672269]
[1723297771100,0.00264152,60695.0,60694.0,1.93190027]
[1723297771317,0.00264152,60695.0,60694.0,1.85001281]
[1723297771504,0.00264152,60695.0,60694.0,1.40813789]
[1723297771719,0.00264152,60695.0,60694.0,1.19783181]
[1723297771920,0.0753,60700.0,60698.0,0.082375]
[1723297771921,0.06118051,60699.0,60698.0,0.082375]
[1723297772108,0.06118051,60699.0,60698.0,0.21921246]
[1723297772282,0.06118051,60699.0,60698.0,0.38396246]
[1723297772575,0.06118051,60699.0,60698.0,0.39616902]
[1723297773196,0.06118051,60699.0,60698.0,0.23141902]
[1723297773398,0.06118051,60699.0,60698.0,0.39616902]
[1723297773813,0.06218051,60699.0,60698.0,0.40216902]
[1723297774430,0.06218051,60699.0,60698.0,0.23741902]
[1723297774935,0.06218051,60699.0,60698.0,0.40216902]
[1723297775890,0.06218051,60699.0,60698.0,0.23742177]
[1723297776387,0.06218051,60699.0,60698.0,0.10058156]
[1723297776518,0.06218051,60699.0,60698.0,0.2374218]
[1723297776929,0.001,60699.0,60698.0,0.7316718]
[1723297777608,0.1383,60699.0,60698.0,0.6492968]
[1723297777809,0.220673,60699.0,60698.0,0.6492968]
[1723297778414,0.139131,60699.0,60698.0,0.6492968]
[1723297779762,0.139131,60699.0,60698.0,0.51245656]
[1723297779993,0.139131,60699.0,60698.0,0.6493055]
[1723297780238,0.221504,60699.0,60698.0,0.6493055]
[1723297782579,0.221504,60699.0,60698.0,0.64930559]
[1723297783599,0.221504,60699.0,60698.0,0.64930675]
[1723297784166,0.159504,60699.0,60698.0,0.64930675]
[1723297784367,0.084204,60699.0,60698.0,0.64930675]
[1723297784570,0.001831,60699.0,60698.0,0.64930675]
[1723297784772,0.001831,60699.0,60698.0,0.81497911]
[1723297784953,0.001831,60699.0,60698.0,0.97972911]
[1723297785246,0.001831,60699.0,60698.0,0.81497911]
[1723297785689,0.001831,60699.0,60698.0,1.04252911]
[1723297786009,0.001831,60699.0,60698.0,0.87777911]
[1723297786207,0.001831,60699.0,60698.0,0.87777097]
[1723297787302,0.001831,60699.0,60698.0,0.74093156]
[1723297787481,0.001831,60699.0,60698.0,1.20727099]
[1723297787828,0.001831,60699.0,60698.0,1.48025163]
[1723297788050,0.001831,60699.0,60698.0,1.47025163]
[1723297788258,0.001831,60699.0,60698.0,1.20726152]
[1723297788638,0.001831,60699.0,60698.0,1.58725371]
[1723297789066,0.001831,60699.0,60698.0,1.57725371]
[1723297789663,0.001831,60699.0,60698.0,1.58725371]
[1723297789846,0.001831,60699.0,60698.0,1.57725371]
[1723297790819,0.001831,60699.0,60698.0,1.57724779]
[1723297791138,0.001831,60699.0,60698.0,1.23518156]
[1723297791337,0.001831,60699.0,60698.0,1.57724771]
[1723297791541,0.001831,60699.0,60698.0,1.32919771]
[1723297791747,0.001831,60699.0,60698.0,1.18169511]
[1723297792003,0.001831,60699.0,60698.0,1.3878489]
[1723297792359,0.001831,60699.0,60698.0,1.18260921]
[1723297792786,0.001831,60699.0,60698.0,1.3878489]
[1723297792983,0.001831,60699.0,60698.0,1.18260921]
[1723297793328,0.001831,60699.0,60698.0,1.3878489]
[1723297793690,0.001831,60699.0,60698.0,1.38785753]
[1723297794015,0.001831,60699.0,60698.0,1.18261329]
[1723297794167,0.001831,60699.0,60698.0,1.38785753]
[1723297794371,0.001831,60699.0,60698.0,1.33011939]
[1723297794950,0.001831,60699.0,60698.0,1.33011246]
[1723297795862,0.001831,60699.0,60698.0,0.98804566]
[1723297796061,0.001831,60699.0,60698.0,1.33011034]
[1723297798542,0.001831,60699.0,60698.0,0.98804566]
[1723297798710,0.001831,60699.0,60698.0,1.33011249]
[1723297799112,0.001831,60699.0,60698.0,1.33011301]
[1723297799514,0.001831,60699.0,60698.0,1.38785104]
[1723297800092,0.001831,60699.0,60698.0,0.99555104]
[1723297800331,0.149331,60699.0,60698.0,0.6501976]
[1723297800774,0.231704,60699.0,60698.0,0.6501976]
[1723297801353,0.231704,60699.0,60698.0,0.65021962]
[1723297801354,0.396451,60699.0,60698.0,0.65021962]
[1723297802217,0.40651417,60699.0,60698.0,0.65021962]
[1723297802377,0.48541417,60699.0,60698.0,0.65021962]
[1723297802572,0.65016117,60699.0,60698.0,0.65021962]
[1723297802839,0.65016117,60699.0,60698.0,0.5011641]
[1723297803095,0.91490817,60699.0,60698.0,0.5011641]
[1723297803297,0.91490817,60699.0,60698.0,0.51337066]
[1723297803502,0.91390817,60699.0,60698.0,0.50737066]
[1723297803703,1.10072309,60699.0,60698.0,0.50737066]
[1723297803984,1.14708415,60699.0,60698.0,0.50737066]
[1723297804155,1.87547009,60699.0,60698.0,0.5033018]
[1723297804700,1.88047009,60699.0,60698.0,0.5033018]
[1723297804904,2.72923009,60699.0,60698.0,0.5033018]
[1723297805132,2.41666909,60699.0,60698.0,0.4951641]
[1723297805345,2.37976909,60699.0,60698.0,0.4951641]
[1723297805534,2.37476909,60699.0,60698.0,0.4951641]
[1723297805953,2.38876909,60699.0,60698.0,0.4951641]
[1723297806188,2.53891879,60699.0,60698.0,0.4951641]
[1723297806334,2.38876909,60699.0,60698.0,0.4961641]
[1723297806516,2.40276909,60699.0,60698.0,0.4961641]
[1723297807363,2.38876909,60699.0,60698.0,0.4951641]
[1723297807565,2.02639155,60699.0,60698.0,0.4961641]
[1723297807816,2.02639155,60699.0,60698.0,0.5043018]
[1723297808035,2.19987009,60699.0,60698.0,0.5043018]
[1723297808249,2.30879155,60699.0,60698.0,0.5043018]
[1723297808455,2.30879155,60699.0,60698.0,0.4961641]
[1723297808662,2.29814871,60699.0,60698.0,0.4961641]
[1723297808850,2.18587009,60699.0,60698.0,0.4961641]
[1723297809274,2.19987009,60699.0,60698.0,0.4961641]
[1723297809401,2.27012454,60699.0,60698.0,0.4951641]
[1723297809620,2.27012454,60699.0,60698.0,0.4961641]
[1723297809831,2.28412454,60699.0,60698.0,0.4961641]
[1723297810342,1.97372454,60699.0,60698.0,0.4951641]
[1723297810575,2.24500854,60699.0,60698.0,0.5043018]
[1723297810718,2.14675409,60699.0,60698.0,0.4961641]
[1723297810937,2.25898433,60699.0,60698.0,0.4961641]
[1723297811134,2.24498433,60699.0,60698.0,0.4961641]
[1723297811535,2.16075409,60699.0,60698.0,0.0019141]
[1723297811939,2.27509938,60699.0,60698.0,0.0019141]
[1723297812279,2.28509938,60699.0,60698.0,0.0019141]
[1723297812421,2.27509938,60699.0,60698.0,0.0019141]
[1723297812622,2.22439332,60699.0,60698.0,0.0019141]
[1723297813146,2.23439332,60699.0,60698.0,0.0019141]
[1723297813934,2.22439332,60699.0,60698.0,0.0019141]
[1723297814543,2.15075409,60699.0,60698.0,0.0019141]
[1723297815475,2.19982123,60699.0,60698.0,0.0019141]
[1723297815686,0.082396,60682.0,60680.0,0.0556575]
[1723297816090,0.082396,60682.0,60681.0,0.00830694]
[1723297816365,0.0789,60685.0,60680.0,0.0556575]
[1723297816366,0.082398,60681.0,60680.0,0.0556575]
[1723297816632,0.082399,60680.0,60678.0,0.009141]
[1723297817073,0.164796,60681.0,60678.0,0.009141]
[1723297817290,0.0819,60682.0,60678.0,0.009141]
[1723297817515,0.0824,60680.0,60678.0,0.009141]
[1723297817974,0.1613,60679.0,60678.0,0.009141]
[1723297819524,0.0824,60679.0,60678.0,0.009141]
[1723297820326,0.0884,60679.0,60678.0,0.009141]
[1723297822385,0.0884,60679.0,60678.0,0.01747782]
[1723297826529,0.253201,60679.0,60678.0,0.01747782]
[1723297826724,0.433401,60679.0,60678.0,0.01747782]
[1723297826923,0.433401,60679.0,60678.0,0.009141]
[1723297828491,0.94981792,60679.0,60678.0,0.009141]
[1723297828737,0.84681692,60679.0,60678.0,0.009141]
[1723297831429,0.427909,60678.0,60677.0,0.009152]
[1723297831742,0.79362392,60678.0,60677.0,0.009152]
[1723297832155,0.76562392,60678.0,60677.0,0.009152]
[1723297832316,0.68672392,60678.0,60677.0,0.009152]
[1723297832493,0.69172392,60678.0,60677.0,0.009152]
[1723297832699,0.69172392,60678.0,60677.0,0.010152]
[1723297832700,0.83372392,60678.0,60677.0,0.010152]
[1723297832901,0.83372392,60678.0,60601.0,0.08283604]
[1723297832902,0.0802,60662.0,60652.0,0.49107874]
[1723297833101,0.0545,60664.0,60652.0,0.49107874]
[1723297833102,0.247308,60653.0,60652.0,0.49107874]
[1723297833309,0.247308,60653.0,60651.0,0.0001]
[1723297833310,0.412187,60652.0,60651.0,0.0001]
[1723297833511,0.700062,60652.0,60651.0,0.0001]
[1723297834283,1.00587692,60652.0,60651.0,0.0001]
[1723297834490,1.55169349,60652.0,60651.0,0.0001]
[1723297835219,1.57569349,60652.0,60651.0,0.0001]
[1723297835514,2.21569349,60652.0,60651.0,0.0001]
[1723297835649,2.22769349,60652.0,60651.0,0.0011]
[1723297835890,2.39139349,60652.0,60651.0,0.0011]
[1723297836115,2.30349729,60652.0,60651.0,0.0011]
[1723297836317,2.30349729,60652.0,60651.0,0.0001]
[1723297836318,2.11937129,60652.0,60651.0,0.0001]
[1723297836639,1.95449629,60652.0,60651.0,0.0001]
[1723297837452,2.32136129,60652.0,60651.0,0.0001]
[1723297837844,2.34936129,60652.0,60651.0,0.0011]
[1723297838083,2.13264599,60652.0,60651.0,0.0011]
[1723297838254,2.23920599,60652.0,60651.0,0.0001]
[1723297838514,2.23920599,60652.0,60647.0,0.009141]
[1723297838515,0.641784,60618.0,60617.0,0.009141]
[1723297838734,0.641784,60618.0,60612.0,0.58716261]
[1723297838735,0.412437,60615.0,60614.0,0.49107874]
[1723297839106,0.08249,60613.0,60612.0,0.58716261]
[1723297839314,0.247471,60613.0,60612.0,0.58716261]
[1723297839545,0.18249,60613.0,60612.0,0.58716261]
[1723297839974,0.512452,60613.0,60612.0,0.58716261]
[1723297840386,0.94444792,60613.0,60612.0,0.58716261]
[1723297841012,0.69926692,60613.0,60612.0,0.58716261]
[1723297841220,0.71326692,60613.0,60612.0,0.58716261]
[1723297841395,0.72726692,60613.0,60612.0,0.58716261]
[1723297841598,0.71326692,60613.0,60612.0,0.58716261]
[1723297841826,0.69926692,60613.0,60612.0,0.58716261]
[1723297842080,0.72726692,60613.0,60612.0,0.58716261]
[1723297842617,0.69926692,60613.0,60612.0,0.58716261]
[1723297843046,1.64042179,60613.0,60612.0,0.58716261]
[1723297843255,0.1125,60606.0,60605.0,9e-07]
[1723297843456,1.84936138,60606.0,60605.0,9e-07]
[1723297843705,2.118211,60606.0,60605.0,9e-07]
[1723297843913,2.4573607,60606.0,60605.0,9e-07]
[1723297844112,2.293211,60606.0,60605.0,9e-07]
[1723297844243,2.293211,60606.0,60591.0,0.0001]
[1723297844244,0.01,60594.0,60591.0,0.0001]
[1723297844444,0.57853092,60594.0,60591.0,0.0001]
[1723297844645,0.247561,60591.0,60590.0,0.005741]
[1723297844873,0.84145792,60591.0,60590.0,0.005741]
[1723297845081,0.86445792,60591.0,60590.0,0.005741]
[1723297846453,0.51137592,60591.0,60590.0,0.005741]
[1723297846671,0.34633492,60591.0,60590.0,0.066741]
[1723297846887,0.34633492,60591.0,60590.0,0.149262]
[1723297846888,0.014,60591.0,60590.0,0.149262]
[1723297847128,0.014,60591.0,60590.0,0.24367318]
[1723297847332,0.014,60591.0,60590.0,0.16115218]
[1723297847535,0.19181492,60591.0,60590.0,0.16115218]
[1723297847762,0.24633492,60591.0,60590.0,0.08315218]
[1723297847964,0.41137592,60591.0,60590.0,0.08315218]
[1723297848198,0.43337592,60591.0,60590.0,0.08303218]
[1723297848411,0.41937592,60591.0,60590.0,0.08303218]
[1723297848641,0.1977,60614.0,60590.0,0.16103218]
[1723297848845,0.082503,60604.0,60598.0,0.078]
[1723297849044,0.082504,60603.0,60598.0,0.078]
[1723297849338,0.247488,60609.0,60600.0,0.165016]
[1723297849517,0.16381492,60608.0,60603.0,0.082503]
[1723297849733,0.16381492,60608.0,60601.0,0.061]
[1723297849933,0.0825,60606.0,60601.0,0.061]
[1723297850163,0.0825,60606.0,60604.0,0.01652621]
[1723297850377,0.16381492,60608.0,60601.0,0.061]
[1723297850629,0.1,60607.0,60605.0,0.01676608]
[1723297850902,0.0825,60606.0,60601.0,0.061]
[1723297851128,0.082501,60605.0,60601.0,0.061]
[1723297851355,0.014,60604.0,60601.0,0.061]
[1723297851550,0.096502,60604.0,60602.0,0.01679647]
[1723297851701,0.082502,60604.0,60602.0,0.01679647]
[1723297851899,0.1,60604.0,60602.0,0.01679647]
[1723297852703,0.112,60604.0,60602.0,0.01679647]
[1723297853240,0.1,60603.0,60602.0,0.01679647]
[1723297853413,0.012,60604.0,60602.0,0.01679647]
[1723297853611,0.112,60604.0,60603.0,0.0009152]
[1723297853941,0.83422692,60604.0,60603.0,0.01355661]
[1723297854141,0.87122692,60604.0,60603.0,0.01355661]
[1723297854294,1.68023192,60604.0,60603.0,0.0009152]
[1723297854496,1.83523692,60604.0,60603.0,0.0009152]
[1723297854696,1.69323192,60604.0,60603.0,0.0009152]
[1723297854904,1.84338162,60604.0,60603.0,0.0009152]
[1723297855104,1.83438162,60604.0,60603.0,0.0009152]
[1723297855406,2.01338662,60604.0,60603.0,0.0009152]
[1723297855614,2.48958362,60604.0,60603.0,0.0009152]
[1723297855830,2.48858362,60604.0,60603.0,0.0009152]
[1723297856076,2.19366662,60604.0,60603.0,0.0009152]
[1723297856227,2.02238662,60604.0,60603.0,0.0009152]
[1723297856409,2.17966662,60604.0,60603.0,0.0009152]
[1723297856821,2.19366662,60604.0,60603.0,0.0009152]
[1723297857026,2.01466162,60604.0,60603.0,0.0009152]
[1723297857263,1.84338162,60604.0,60603.0,0.0009152]
[1723297857484,1.69323192,60604.0,60603.0,0.0009152]
[1723297857706,1.62743192,60604.0,60603.0,0.0009152]
[1723297858819,1.05432192,60604.0,60603.0,0.0009152]
[1723297859290,0.26931692,60604.0,60603.0,0.0009152]
[1723297859513,0.023,60604.0,60603.0,0.0789152]
[1723297859718,0.023,60604.0,60603.0,0.17406061]
[1723297859934,0.023,60604.0,60603.0,0.09577041]
[1723297860175,0.009,60604.0,60603.0,0.17827441]
[1723297860601,0.014,60604.0,60603.0,0.09577041]
[1723297860806,0.164986,60611.0,60603.0,0.09577041]
[1723297861022,0.018,60604.0,60603.0,0.34328241]
[1723297861212,0.018,60604.0,60603.0,0.17827441]
[1723297861420,0.009,60604.0,60603.0,0.34328241]
[1723297861848,0.012,60604.0,60603.0,0.50829041]
[1723297862027,0.012,60604.0,60603.0,0.56929041]
[1723297862564,0.012,60604.0,60603.0,0.56507661]
[1723297862765,0.012,60604.0,60603.0,0.56929041]
[1723297863211,0.01196,60604.0,60603.0,0.70633728]
[1723297863649,0.01196,60604.0,60603.0,0.54132928]
[1723297863848,0.01196,60604.0,60603.0,0.15677041]
[1723297864240,0.164993,60609.0,60603.0,0.15677041]
[1723297864403,0.082499,60607.0,60603.0,0.15677041]
[1723297864618,0.009,60604.0,60603.0,0.15677041]
[1723297865060,0.006,60604.0,60603.0,0.15677041]
[1723297865208,0.006,60604.0,60603.0,0.29382806]
[1723297865640,0.006831,60604.0,60603.0,0.29382806]
[1723297865806,0.000831,60604.0,60603.0,0.29382806]
[1723297866209,0.009831,60604.0,60603.0,0.29382806]
[1723297866436,0.092333,60604.0,60603.0,0.29382806]
[1723297866792,0.083333,60604.0,60603.0,0.29382806]
[1723297866977,0.009831,60604.0,60603.0,0.15677041]
[1723297867409,0.009831,60604.0,60603.0,0.29382996]
[1723297867811,0.009831,60604.0,60603.0,0.01777041]
[1723297867812,0.92229522,60604.0,60603.0,0.01777041]
[1723297868021,1.70829522,60604.0,60603.0,0.0009152]
[1723297868221,1.97330022,60604.0,60603.0,0.0009152]
[1723297868649,1.97030022,60604.0,60603.0,0.0009152]
[1723297868847,1.94456792,60604.0,60603.0,0.0009152]
[1723297869057,1.94756792,60604.0,60603.0,0.0009152]
[1723297869210,1.94870818,60604.0,60603.0,0.0009152]
[1723297869614,1.95470818,60604.0,60603.0,0.0009152]
[1723297869797,1.94870818,60604.0,60603.0,0.0009152]
[1723297870237,1.95770818,60604.0,60603.0,0.0009152]
[1723297870457,2.12185788,60604.0,60603.0,0.0009152]
[1723297870708,2.47749188,60604.0,60603.0,0.0009152]
[1723297871044,2.76156888,60604.0,60603.0,0.0009152]
[1723297871294,2.92657388,60604.0,60603.0,0.0009152]
[1723297871991,2.92357388,60604.0,60603.0,0.0009152]
[1723297872235,2.91357388,60604.0,60603.0,0.0009152]
[1723297872440,2.92757388,60604.0,60603.0,0.0009152]
[1723297872641,2.90457388,60604.0,60603.0,0.0009152]
[1723297872777,0.577643,60591.0,60589.0,0.000152]
[1723297872984,1.52355792,60591.0,60589.0,0.000152]
[1723297873644,1.44445792,60591.0,60589.0,0.000152]
[1723297874053,1.45845792,60591.0,60589.0,0.000152]
[1723297875130,1.45945792,60591.0,60589.0,0.000152]
[1723297875486,1.45845792,60591.0,60589.0,0.000152]
[1723297875686,1.44445792,60591.0,60589.0,0.000152]
[1723297875909,1.45845792,60591.0,60589.0,0.000152]
[1723297876877,0.89245792,60591.0,60589.0,0.000152]
[1723297879514,0.87845792,60591.0,60589.0,0.000152]
[1723297880076,0.89245792,60591.0,60589.0,0.000152]
[1723297880639,1.55245792,60591.0,60589.0,0.000152]
[1723297883936,1.55245792,60591.0,60590.0,0.086721]
[1723297884140,1.09937592,60591.0,60590.0,0.086721]
[1723297884319,1.08537592,60591.0,60590.0,0.086721]
[1723297884518,0.43837592,60591.0,60590.0,0.086721]
[1723297884942,0.42437592,60591.0,60590.0,0.09976445]
[1723297885157,0.165017,60600.0,60590.0,0.09976445]
[1723297885324,0.165017,60600.0,60590.0,0.18228545]
[1723297885325,0.026,60591.0,60590.0,0.18228545]
[1723297885679,0.012,60591.0,60590.0,0.15986445]
[1723297885811,0.026,60591.0,60590.0,0.15986445]
[1723297886011,0.014,60591.0,60590.0,0.15986445]
[1723297886217,0.082519,60593.0,60590.0,0.15986445]
[1723297886582,0.011,60591.0,60590.0,0.15986445]
[1723297886861,0.41137592,60591.0,60590.0,0.15986445]
[1723297886996,0.57641692,60591.0,60590.0,0.146821]
[1723297887199,0.57641692,60591.0,60590.0,0.065721]
[1723297887419,0.57641692,60591.0,60590.0,0.005621]
[1723297887619,0.67641692,60591.0,60590.0,0.01866445]
[1723297887839,0.68741692,60591.0,60590.0,0.005621]
[1723297888044,0.69741692,60591.0,60590.0,0.005621]
[1723297888249,0.68641692,60591.0,60590.0,0.005621]
[1723297888704,0.69641692,60591.0,60590.0,0.005621]
[1723297888860,0.68641692,60591.0,60590.0,0.005621]
[1723297889065,0.67641692,60591.0,60590.0,0.005621]
[1723297889273,0.69041692,60591.0,60590.0,0.005621]
[1723297889514,0.68741692,60591.0,60590.0,0.005621]
[1723297889831,0.70141692,60591.0,60590.0,0.005621]
[1723297890887,0.69041692,60591.0,60590.0,0.005621]
[1723297891111,0.67641692,60591.0,60590.0,0.005621]
[1723297891274,0.68341692,60591.0,60590.0,0.005621]
[1723297891489,0.69741692,60591.0,60590.0,0.005621]
[1723297891836,0.67641692,60591.0,60590.0,0.005621]
[1723297892014,0.69841692,60591.0,60590.0,0.005621]
[1723297892360,0.68441692,60591.0,60590.0,0.005621]
[1723297892571,0.69041692,60591.0,60590.0,0.005621]
[1723297892773,0.70241692,60591.0,60590.0,0.005621]
[1723297892989,0.53737592,60591.0,60590.0,0.005621]
[1723297893649,0.70241692,60591.0,60590.0,0.005621]
[1723297893882,0.53737592,60591.0,60590.0,0.005621]
[1723297894101,0.52337592,60591.0,60590.0,0.005621]
[1723297894303,0.51137592,60591.0,60590.0,0.005621]
[1723297894503,0.53637592,60591.0,60590.0,0.005621]
[1723297894705,0.52237592,60591.0,60590.0,0.005621]
[1723297895110,0.53637592,60591.0,60590.0,0.005621]
[1723297895285,0.52237592,60591.0,60590.0,0.005621]
[1723297895494,0.51137592,60591.0,60590.0,0.005621]
[1723297895698,0.69041692,60591.0,60590.0,0.005621]
[1723297895898,0.53437592,60591.0,60590.0,0.005621]
[1723297896842,0.53437592,60591.0,60590.0,0.01866445]
[1723297896989,0.53437592,60591.0,60590.0,0.005621]
[1723297897190,0.52037592,60591.0,60590.0,0.14271877]
[1723297897389,0.51137592,60591.0,60590.0,0.14271877]
[1723297897629,0.51137592,60591.0,60590.0,0.15576222]
[1723297897630,0.53937592,60591.0,60590.0,0.15576222]
[1723297897874,0.52537592,60591.0,60590.0,0.15576222]
[1723297898314,0.26033492,60591.0,60590.0,0.15576222]
[1723297898511,0.25733492,60591.0,60590.0,0.29936222]
[1723297898777,0.27133492,60591.0,60590.0,0.29936222]
[1723297898983,0.24633492,60591.0,60590.0,0.29936222]
[1723297899372,0.25333492,60591.0,60590.0,0.29936222]
[1723297899959,0.17081492,60591.0,60590.0,0.29935371]
[1723297900502,0.007,60591.0,60590.0,0.73991445]
[1723297900634,0.007,60591.0,60590.0,1.0909641]
[1723297900845,0.02,60591.0,60590.0,1.0909641]
[1723297901048,0.013,60591.0,60590.0,1.0789641]
[1723297901252,0.083334,60604.0,60600.0,0.082508]
[1723297901452,0.000831,60604.0,60601.0,0.36317947]
[1723297901661,0.000831,60604.0,60602.0,0.13707347]